fUSD/lending_fUSD_20240404
["ID","MTS","AMOUNT","RATE_DAILY","PERIOD"]
[321459534,1712200308914,-14500.53,0.00055342,120]
[321459535,1712200308923,-479.03037831,0.00055342,120]
[321459536,1712200308932,-1675.35,0.00055342,120]
[321459537,1712200308941,-500.0,0.00055342,120]
[321459538,1712200308951,-500.0,0.00055342,120]
[321459539,1712200308960,-2367.07,0.00055342,120]
[321459540,1712200308970,-151.0,0.00055342,120]
[321459541,1712200308979,-2722.45,0.00055342,120]
[321459542,1712200308989,-522.14992769,0.00055342,120]
[321459543,1712200308998,-1253.38,0.00055342,120]
[321459544,1712200309007,-500.0,0.00055342,120]
[321459545,1712200309016,-552.28,0.00055342,120]
[321459546,1712200309025,-1188.53,0.00055342,120]
[321459547,1712200309033,-1586.48,0.00055342,120]
[321459548,1712200309042,-500.0,0.00055342,120]
[321459549,1712200309051,-2639.18,0.00055342,120]
[321459550,1712200309060,-500.0,0.00055342,120]
[321459551,1712200309069,-500.0,0.00055342,120]
[321459552,1712200309079,-500.0,0.00055342,120]
[321459553,1712200309088,-500.0,0.00055342,120]
[321459554,1712200309099,-1457.76,0.00055342,120]
[321459555,1712200309108,-1660.69,0.00055342,120]
[321459556,1712200309117,-500.0,0.00055342,120]
[321459557,1712200309126,-2986.02,0.00055342,120]
[321459558,1712200309136,-1877.49,0.00055342,120]
[321459559,1712200309146,-771.63,0.00055342,120]
[321459560,1712200309155,-2410.62,0.00055342,120]
[321459561,1712200309164,-1159.24,0.00055342,120]
[321459562,1712200309173,-3214.36,0.00055342,120]
[321459563,1712200309183,-500.0,0.00055342,120]
[321459564,1712200309192,-903.02,0.00055342,120]
[321459565,1712200309201,-924.61,0.00055342,120]
[321459566,1712200309210,-500.0,0.00055342,120]
[321459567,1712200309219,-500.0,0.00055342,120]
[321459568,1712200309228,-292.667321,0.00055342,120]
[321459569,1712200309237,-500.0,0.00055342,120]
[321459570,1712200309247,-500.0,0.00055342,120]
[321459571,1712200309256,-292.667321,0.00055342,120]
[321459572,1712200309266,-40448.75,0.00055342,120]
[321459573,1712200309275,-500.0,0.00055342,120]
[321459574,1712200309284,-1955.63,0.00055342,120]
[321459575,1712200309293,-2432.48,0.00055342,120]
[321459576,1712200309302,-560.33788163,0.00055342,120]
[321459577,1712200309311,-500.0,0.00055342,120]
[321459578,1712200309320,-500.0,0.00055342,120]
[321459579,1712200309328,-500.0,0.00055342,120]
[321459580,1712200309337,-1208.03,0.00055342,120]
[321459581,1712200309349,-3666.55,0.00055342,120]
[321459582,1712200309358,-500.0,0.00055342,120]
[321459583,1712200309367,-565.01,0.00055342,120]
[321459584,1712200309376,-2721.89,0.00055342,120]
[321459585,1712200309386,-1251.21,0.00055342,120]
[321459586,1712200309395,-593.12,0.00055342,120]
[321459587,1712200309404,-6048.98,0.00055342,120]
[321459588,1712200309413,-1635.1,0.00055342,120]
[321459589,1712200309422,-500.0,0.00055342,120]
[321459590,1712200309431,-8828.9,0.00055342,120]
[321459591,1712200309440,-500.0,0.00055342,120]
[321459592,1712200309449,-1504.24,0.00055342,120]
[321459593,1712200309458,-500.0,0.00055342,120]
[321459594,1712200309468,-835.11,0.00055342,120]
[321459595,1712200309477,-18220.01,0.00055342,120]
[321459596,1712200309486,-5900.97,0.00055342,120]
[321459597,1712200309496,-500.0,0.00055342,120]
[321459598,1712200309505,-500.0,0.00055342,120]
[321459599,1712200309513,-500.0,0.00055342,120]
[321459600,1712200309522,-881.61,0.00055342,120]
[321459601,1712200309531,-1186.29,0.00055342,120]
[321459602,1712200309541,-22689.12,0.00055342,120]
[321459603,1712200309550,-528.6,0.00055342,120]
[321459604,1712200309559,-500.0,0.00055342,120]
[321459605,1712200309568,-500.0,0.00055342,120]
[321459606,1712200309577,-500.0,0.00055342,120]
[321459607,1712200309586,-500.0,0.00055342,120]
[321459608,1712200309597,-3620.99,0.00055342,120]
[321459609,1712200309607,-2635.7,0.00055342,120]
[321459610,1712200309617,-500.0,0.00055342,120]
[321459611,1712200309625,-500.0,0.00055342,120]
[321459612,1712200309634,-534.24899945,0.00055342,120]
[321459613,1712200309643,-650.57,0.00055342,120]
[321459614,1712200309653,-1339.71,0.00055342,120]
[321459615,1712200309662,-500.0,0.00055342,120]
[321459616,1712200309671,-151.0,0.00055342,120]
[321459617,1712200309680,-500.0,0.00055342,120]
[321459618,1712200309689,-527.11297709,0.00055342,120]
[321459619,1712200309698,-4460.99,0.00055342,120]
[321459620,1712200309707,-500.0,0.00055342,120]
[321459621,1712200309716,-2237.15,0.00055342,21]
[321459622,1712200309726,-500.0,0.00055342,120]
[321459623,1712200309735,-1691.17,0.00055342,120]
[321459624,1712200309744,-1711.13,0.00055342,7]
[321459625,1712200309753,-500.0,0.00055342,120]
[321459626,1712200309762,-658.56,0.00055342,120]
[321459627,1712200309771,-7361.59,0.00055342,120]
[321459628,1712200309781,-1097.27,0.00055342,120]
[321459629,1712200309790,-4641.79,0.00055342,120]
[321459630,1712200309799,-500.0,0.00055342,120]
[321459631,1712200309808,-500.0,0.00055342,120]
[321459632,1712200309818,-500.0,0.00055342,120]
[321459633,1712200309827,-259.428547,0.00055342,120]
[321459634,1712200309837,-5803.21,0.00055342,120]
[321459635,1712200309848,-500.0,0.00055342,120]
[321459636,1712200309860,-4333.28,0.00055342,120]
[321459637,1712200309871,-5008.64,0.00055342,120]
[321459638,1712200309881,-1131.15,0.00055342,120]
[321459639,1712200309890,-259.428547,0.00055342,120]
[321459640,1712200309900,-812.33,0.00055342,120]
[321459641,1712200309909,-15539.97,0.00055342,120]
[321459642,1712200309919,-2073.37,0.00055342,120]
[321459643,1712200309928,-500.0,0.00055342,120]
[321459644,1712200309939,-162.974525,0.00055342,120]
[321459645,1712200309949,-500.0,0.00055342,120]
[321459646,1712200309958,-162.974525,0.00055342,120]
[321459647,1712200309968,-1653.07,0.00055342,120]
[321459648,1712200309977,-151.0,0.00055342,120]
[321459649,1712200309986,-786.18,0.00055342,120]
[321459650,1712200309996,-500.0,0.00055342,120]
[321459651,1712200310006,-500.0,0.00055342,120]
[321459652,1712200310016,-500.0,0.00055342,120]
[321459653,1712200310026,-500.0,0.00055342,120]
[321459654,1712200310037,-3101.5,0.00055342,120]
[321459655,1712200310047,-173.09599656,0.00055342,120]
[321459656,1712200310057,-4002.83,0.00055342,120]
[321459657,1712200310067,-500.0,0.00055342,120]
[321459658,1712200310077,-1000.0,0.00055342,120]
[321459659,1712200310087,-780.89,0.00055342,120]
[321459660,1712200310099,-1099.33,0.00055342,120]
[321459661,1712200310110,-151.0,0.00055342,120]
[321459662,1712200310119,-1810.31,0.00055342,120]
[321459663,1712200310129,-500.0,0.00055342,120]
[321459664,1712200310139,-992.63,0.00055342,120]
[321459665,1712200310149,-2719.84,0.00055342,120]
[321459666,1712200310159,-4594.4,0.00055342,120]
[321459667,1712200310169,-500.0,0.00055342,120]
[321459668,1712200310179,-461.879019,0.00055342,120]
[321459669,1712200310189,-8315.86,0.00055342,30]
[321459670,1712200310199,-461.879019,0.00055342,120]
[321459671,1712200310209,-3281.58,0.00055342,120]
[321459672,1712200310220,-4452.74,0.00055342,120]
[321459673,1712200310230,-500.0,0.00055342,120]
[321459674,1712200310240,-500.0,0.00055342,2]
[321459675,1712200310250,-151.0,0.00055342,120]
[321459676,1712200310259,-151.0,0.00055342,120]
[321459677,1712200310269,-5676.39,0.00055342,120]
[321459678,1712200310279,-799.28,0.00055342,120]
[321459679,1712200310289,-500.0,0.00055342,120]
[321459680,1712200310299,-500.0,0.00055342,120]
[321459681,1712200310309,-2184.04,0.00055342,120]
[321459682,1712200310318,-2848.68,0.00055342,120]
[321459683,1712200310328,-871.82,0.00055342,120]
[321459684,1712200310338,-500.0,0.00055342,120]
[321459685,1712200310350,-500.0,0.00055342,120]
[321459686,1712200310360,-500.0,0.00055342,120]
[321459687,1712200310370,-500.0,0.00055342,120]
[321459688,1712200310380,-577.33,0.00055342,120]
[321459689,1712200310390,-1635.35,0.00055342,120]
[321459690,1712200310400,-2850.37,0.00055342,120]
[321459691,1712200310410,-500.0,0.00055342,120]
[321459692,1712200310420,-4917.1,0.00055342,120]
[321459693,1712200310430,-321.16647792,0.00055342,120]
[321459694,1712200310440,-888.72,0.00055342,120]
[321459695,1712200310450,-500.0,0.00055342,120]
[321459696,1712200310460,-2799.35,0.00055342,120]
[321459697,1712200310470,-500.0,0.00055342,120]
[321459698,1712200310480,-1108.08,0.00055342,120]
[321459699,1712200310490,-2491.48,0.00055342,120]
[321459700,1712200310500,-500.0,0.00055342,120]
[321459701,1712200310510,-3318.06,0.00055342,120]
[321459702,1712200310519,-1922.21,0.00055342,120]
[321459703,1712200310529,-635.38,0.00055342,120]
[321459704,1712200310539,-527.80556378,0.00055342,120]
[321459705,1712200310549,-1842.18,0.00055342,120]
[321459706,1712200310559,-500.0,0.00055342,120]
[321459707,1712200310568,-2240.52,0.00055342,120]
[321459708,1712200310579,-500.0,0.00055342,120]
[321459709,1712200310589,-7532.02,0.00055342,120]
[321459710,1712200310600,-500.0,0.00055342,120]
[321459711,1712200310610,-2789.6,0.00055342,120]
[321459712,1712200310620,-19673.78,0.00055342,120]
[321459713,1712200310630,-6100.85,0.00055342,120]
[321459714,1712200310640,-243.27438233,0.00055342,120]
[321459715,1712200310650,-224.08278341,0.00055342,120]
[321459716,1712200310660,-151.0,0.00055342,120]
[321459717,1712200310670,-150.0,0.00055346,120]
[321459718,1712200310680,-421.34817259,0.0005535,120]
[321459719,1712200310689,-191.58923616,0.0005535,120]
[321459720,1712200310700,-2110.0,0.00055352,15]
[321459721,1712200310709,-150.0,0.00055358,120]
[321459722,1712200310719,-150.0,0.00055359,120]
[321459723,1712200310729,-421.34817259,0.00055361,120]
[321459724,1712200310739,-191.58923616,0.00055361,120]
[321459725,1712200310749,-500.0,0.00055369,120]
[321459726,1712200310759,-150.0,0.00055369,120]
[321459727,1712200310769,-421.34817259,0.00055371,120]
[321459728,1712200310779,-191.58923616,0.00055371,120]
[321459729,1712200310789,-1398.444825,0.0005538,27]
[321459730,1712200310799,-150.0,0.00055381,120]
[321459731,1712200310808,-831.96,0.00055381,2]
[321459732,1712200310818,-421.34817259,0.00055382,120]
[321459733,1712200310827,-191.58923616,0.00055382,120]
[321459734,1712200310837,-150.0,0.00055392,120]
[321459735,1712200310849,-421.34817259,0.00055393,120]
[321459736,1712200310859,-191.58923616,0.00055393,120]
[321459737,1712200310871,-150.0,0.00055394,120]
[321459738,1712200310881,-1000.0,0.000554,27]
[321459739,1712200310891,-421.34817259,0.00055403,120]
[321459740,1712200310901,-191.58923616,0.00055403,120]
[321459741,1712200310910,-150.0,0.00055404,120]
[321459742,1712200310920,-1893.58,0.0005541,120]
[321459743,1712200310930,-1893.58,0.0005541,120]
[321459744,1712200310940,-421.34817259,0.00055414,120]
[321459745,1712200310951,-191.58923616,0.00055414,120]
[321459746,1712200310960,-150.0,0.00055415,120]
[321459747,1712200310970,-1000.0,0.0005542,27]
[321459748,1712200310980,-150.0,0.00055422,120]
[321459749,1712200310990,-421.34817259,0.00055425,120]
[321459750,1712200310999,-191.58923616,0.00055425,120]
[321459751,1712200311008,-150.0,0.00055427,120]
[321459752,1712200311019,-150.0,0.00055429,120]
[321459753,1712200311028,-150.0,0.00055429,120]
[321459754,1712200311038,-421.34817259,0.00055435,120]
[321459755,1712200311048,-191.58923616,0.00055435,120]
[321459756,1712200311058,-150.0,0.00055438,120]
[321459757,1712200311068,-1000.0,0.0005544,27]
[321459758,1712200311078,-421.34817259,0.00055446,120]
[321459759,1712200311087,-191.58923616,0.00055446,120]
[321459760,1712200311098,-150.0,0.0005545,120]
[321459761,1712200311108,-500.0,0.00055452,120]
[321459762,1712200311117,-421.34817259,0.00055457,120]
[321459763,1712200311127,-191.58923616,0.00055457,120]
[321459764,1712200311136,-1000.0,0.0005546,27]
[321459765,1712200311146,-150.0,0.00055461,120]
[321459766,1712200311157,-150.0,0.00055464,120]
[321459767,1712200311167,-421.34817259,0.00055467,120]
[321459768,1712200311177,-191.58923616,0.00055467,120]
[321459769,1712200311187,-150.0,0.00055473,120]
[321459770,1712200311197,-421.34817259,0.00055478,120]
[321459771,1712200311206,-191.58923616,0.00055478,120]
[321459772,1712200311216,-961.27,0.00055479,120]
[321459773,1712200311225,-1000.0,0.0005548,27]
[321459774,1712200311235,-150.0,0.00055484,120]
[321459775,1712200311244,-421.34817259,0.00055489,120]
[321459776,1712200311254,-191.58923616,0.00055489,120]
[321459777,1712200311263,-150.0,0.00055496,120]
[321459778,1712200311273,-421.34817259,0.000555,120]
[321459779,1712200311282,-191.58923616,0.000555,120]
[321459780,1712200311292,-150.0,0.000555,120]
[321459781,1712200311301,-150.0,0.000555,120]
[321459782,1712200311311,-150.0,0.000555,120]
[321459783,1712200311320,-4503.59668214,0.000555,120]
[321459784,1712200311330,-1000.0,0.000555,120]
[321459785,1712200311340,-2000.0,0.000555,120]
[321459786,1712200311351,-164.77215599,0.000555,120]
[321459787,1712200311360,-999.0,0.000555,105]
[321459788,1712200311370,-996.62,0.000555,2]
[321459789,1712200311380,-1000.0,0.000555,27]
[321459790,1712200311389,-150.0,0.00055507,120]
[321459791,1712200311400,-421.34817259,0.0005551,120]
[321459792,1712200311410,-191.58923616,0.0005551,120]
[321459793,1712200311420,-150.0,0.00055519,120]
[321459794,1712200311431,-1000.0,0.0005552,27]
[321459795,1712200311441,-421.34817259,0.00055521,120]
[321459796,1712200311451,-191.58923616,0.00055521,120]
[321459797,1712200311461,-150.0,0.0005553,120]
[321459798,1712200311470,-421.34817259,0.00055532,120]
[321459799,1712200311480,-191.58923616,0.00055532,120]
[321459800,1712200311490,-500.0,0.00055534,120]
[321459801,1712200311500,-151.0,0.00055534,120]
[321459802,1712200311510,-150.0,0.00055535,120]
[321459803,1712200311519,-1000.0,0.0005554,27]
[321459804,1712200311529,-1175.393457,0.0005554,27]
[321459805,1712200311539,-150.0,0.00055542,120]
[321459806,1712200311549,-421.34817259,0.00055542,120]
[321459807,1712200311559,-191.58923616,0.00055542,120]
[321459808,1712200311569,-150.0,0.00055543,120]
[321459809,1712200311578,-191.58923616,0.00055553,120]
[321459810,1712200311588,-150.0,0.00055553,120]
[321459811,1712200311599,-1000.0,0.0005556,27]
[321459812,1712200311609,-1000.0,0.0005556,27]
[321459813,1712200311619,-191.58923616,0.00055564,120]
[321459814,1712200311629,-150.0,0.00055565,120]
[321459815,1712200311639,-400.0,0.0005557,30]
[321459816,1712200311649,-1000.0,0.0005557,30]
[321459817,1712200311659,-150.0,0.0005557,120]
[321459818,1712200311669,-2000.0,0.00055573,5]
[321459819,1712200311679,-2000.0,0.00055573,5]
[321459820,1712200311688,-2000.0,0.00055573,5]
[321459821,1712200311698,-2000.0,0.00055573,5]
[321459822,1712200311708,-191.58923616,0.00055574,120]
[321459823,1712200311718,-150.0,0.00055576,120]
[321459824,1712200311728,-150.0,0.00055578,60]
[321459825,1712200311738,-7892.3592758,0.00055578,2]
[321459826,1712200311748,-14856.6778335,0.00055578,2]
[321459827,1712200311759,-22518.0916607,0.00055578,2]
[321459828,1712200311768,-3326.4109877,0.00055578,2]
[321459829,1712200311778,-1000.0,0.0005558,27]
[321459830,1712200311788,-1000.0,0.0005558,27]
[321459831,1712200311797,-191.58923616,0.00055585,120]
[321459832,1712200311808,-150.0,0.00055588,120]
[321459833,1712200311818,-1151.93,0.00055589,120]
[321459834,1712200311829,-191.58923616,0.00055596,120]
[321459835,1712200311839,-150.0,0.00055599,120]
[321459836,1712200311850,-150.0,0.000556,34]
[321459837,1712200311861,-480.0,0.000556,45]
[321459838,1712200311874,-150.0,0.000556,34]
[321459839,1712200311885,-269.16,0.000556,120]
[321459840,1712200311894,-200.0,0.000556,34]
[321459841,1712200311904,-200.0,0.000556,34]
[321459842,1712200311914,-300.0,0.000556,15]
[321459843,1712200311925,-150.0,0.000556,12]
[321459844,1712200311935,-1000.0,0.000556,27]
[321459845,1712200311946,-1000.0,0.000556,27]
[321459846,1712200311955,-150.0,0.00055605,120]
[321459847,1712200311965,-191.58923616,0.00055606,120]
[321459848,1712200311975,-150.0,0.00055611,120]
[321459849,1712200311985,-500.0,0.00055616,30]
[321459850,1712200312201,-500.0,0.00055616,120]
[321459851,1712200312210,-500.0,0.00055616,120]
[321459852,1712200312220,-273.87709341,0.00055616,120]
[321459853,1712200312229,-500.0,0.00055616,120]
[321459854,1712200312238,-350.2844806,0.00055616,120]
[321459855,1712200312247,-500.0,0.00055616,120]
[321459856,1712200312258,-681.87,0.00055616,120]
[321459857,1712200312267,-500.0,0.00055616,120]
[321459858,1712200312276,-336.51734738,0.00055616,120]
[321459859,1712200312285,-723.7,0.00055616,120]
[321459860,1712200312294,-728.77,0.00055616,120]
[321459861,1712200312303,-584.05,0.00055616,120]
[321459862,1712200312312,-500.0,0.00055616,120]
[321459863,1712200312321,-974.99,0.00055616,120]
[321459864,1712200312330,-500.0,0.00055616,120]
[321459865,1712200312339,-500.0,0.00055616,120]
[321459866,1712200312350,-526.68935315,0.00055616,120]
[321459867,1712200312359,-500.0,0.00055616,120]
[321459868,1712200312368,-522.041549,0.00055616,120]
[321459869,1712200312378,-500.0,0.00055616,2]
[321459870,1712200312388,-517.47094416,0.00055616,120]
[321459871,1712200312397,-500.0,0.00055616,120]
[321459872,1712200312407,-578.06,0.00055616,120]
[321459873,1712200312416,-618.09,0.00055616,120]
[321459874,1712200312425,-500.0,0.00055616,120]
[321459875,1712200312434,-500.0,0.00055616,120]
[321459876,1712200312443,-528.5414575,0.00055616,120]
[321459877,1712200312452,-500.0,0.00055616,120]
[321459878,1712200312462,-439.06530147,0.00055616,120]
[321459879,1712200312471,-500.0,0.00055616,120]
[321459880,1712200312480,-325.80345053,0.00055616,120]
[321459881,1712200312489,-541.731602,0.00055616,120]
[321459882,1712200312499,-519.66254148,0.00055616,120]
[321459883,1712200312508,-522.7656187,0.00055616,120]
[321459884,1712200312517,-539.8,0.00055616,120]
[321459885,1712200312526,-500.0,0.00055616,120]
[321459886,1712200312535,-500.0,0.00055616,120]
[321459887,1712200312544,-500.0,0.00055616,120]
[321459888,1712200312553,-500.0,0.00055616,120]
[321459889,1712200312561,-500.0,0.00055616,120]
[321459890,1712200312571,-560.72,0.00055616,120]
[321459891,1712200312580,-540.72518677,0.00055616,120]
[321459892,1712200312589,-500.0,0.00055616,120]
[321459893,1712200312599,-500.0,0.00055616,2]
[321459894,1712200312608,-675.6,0.00055616,120]
[321459895,1712200312618,-500.0,0.00055616,120]
[321459896,1712200312628,-439.20259023,0.00055616,120]
[321459897,1712200312638,-500.0,0.00055616,120]
[321459898,1712200312649,-500.0,0.00055616,120]
[321459899,1712200312660,-536.75354126,0.00055616,120]
[321459900,1712200312671,-674.64,0.00055616,120]
[321459901,1712200312681,-532.24,0.00055616,120]
[321459902,1712200312691,-500.0,0.00055616,120]
[321459903,1712200312702,-550.72936447,0.00055616,120]
[321459904,1712200312711,-500.0,0.00055616,120]
[321459905,1712200312721,-530.55201248,0.00055616,120]
[321459906,1712200312731,-521.4488399,0.00055616,120]
[321459907,1712200312742,-518.08,0.00055616,120]
[321459908,1712200312752,-813.48,0.00055616,120]
[321459909,1712200312763,-500.0,0.00055616,120]
[321459910,1712200312773,-500.0,0.00055616,120]
[321459911,1712200312783,-533.66470454,0.00055616,120]
[321459912,1712200312792,-631.14,0.00055616,120]
[321459913,1712200312802,-500.0,0.00055616,120]
[321459914,1712200312812,-526.40869904,0.00055616,120]
[321459915,1712200312821,-516.01295362,0.00055616,120]
[321459916,1712200312831,-543.49407012,0.00055616,120]
[321459917,1712200312841,-500.0,0.00055616,120]
[321459918,1712200312851,-500.0,0.00055616,120]
[321459919,1712200312862,-797.4,0.00055616,120]
[321459920,1712200312874,-500.0,0.00055616,120]
[321459921,1712200312885,-272.48849072,0.00055616,120]
[321459922,1712200312895,-961.27,0.00055616,120]
[321459923,1712200312904,-658.74,0.00055616,120]
[321459924,1712200312915,-818.65,0.00055616,120]
[321459925,1712200312925,-752.9,0.00055616,120]
[321459926,1712200312935,-539.48,0.00055616,120]
[321459927,1712200312946,-473.7721276,0.00055616,120]
[321459928,1712200312956,-500.0,0.00055616,120]
[321459929,1712200312967,-500.0,0.00055616,120]
[321459930,1712200312978,-500.0,0.00055616,120]
[321459931,1712200312988,-1000.04043963,0.00055616,120]
[321459932,1712200312999,-500.0,0.00055616,120]
[321459933,1712200313009,-500.0,0.00055616,120]
[321459934,1712200313018,-538.83511668,0.00055616,120]
[321459935,1712200313028,-500.0,0.00055616,120]
[321459936,1712200313038,-500.0,0.00055616,120]
[321459937,1712200313047,-455.59865371,0.00055616,120]
[321459938,1712200313056,-500.0,0.00055616,120]
[321459939,1712200313067,-500.0,0.00055616,120]
[321459940,1712200313077,-1653.33,0.00055616,2]
[321459941,1712200313087,-500.0,0.00055616,120]
[321459942,1712200313099,-500.0,0.00055616,120]
[321459943,1712200313109,-735.54,0.00055616,120]
[321459944,1712200313121,-500.0,0.00055616,120]
[321459945,1712200313133,-500.0,0.00055616,120]
[321459946,1712200313144,-500.0,0.00055616,120]
[321459947,1712200313153,-500.0,0.00055616,120]
[321459948,1712200313164,-500.0,0.00055616,120]
[321459949,1712200313174,-600.0,0.00055616,2]
[321459950,1712200313184,-676.77,0.00055616,120]
[321459951,1712200313194,-500.0,0.00055616,120]
[321459952,1712200313204,-919.9,0.00055616,120]
[321459953,1712200313215,-500.0,0.00055616,120]
[321459954,1712200313226,-500.0,0.00055616,120]
[321459955,1712200313238,-500.0,0.00055616,120]
[321459956,1712200313249,-573.69,0.00055616,120]
[321459957,1712200313260,-703.82,0.00055616,120]
[321459958,1712200313269,-500.0,0.00055616,120]
[321459959,1712200313279,-1029.43,0.00055616,120]
[321459960,1712200313290,-500.0,0.00055616,120]
[321459961,1712200313300,-875.1,0.00055616,120]
[321459962,1712200313311,-614.81269397,0.00055616,120]
[321459963,1712200313321,-2209.07,0.00055616,120]
[321459964,1712200313330,-705.27,0.00055616,120]
[321459965,1712200313340,-500.0,0.00055616,120]
[321459966,1712200313351,-751.57,0.00055616,120]
[321459967,1712200313360,-500.0,0.00055616,120]
[321459968,1712200313370,-1008.2,0.00055616,120]
[321459969,1712200313379,-500.0,0.00055616,120]
[321459970,1712200313389,-2122.58,0.00055616,120]
[321459971,1712200313398,-1103.16,0.00055616,120]
[321459972,1712200313407,-514.46,0.00055616,120]
[321459973,1712200313416,-929.17,0.00055616,120]
[321459974,1712200313425,-1658.5,0.00055616,30]
[321459975,1712200313434,-500.0,0.00055616,120]
[321459976,1712200313443,-668.56,0.00055616,120]
[321459977,1712200313453,-1348.04,0.00055616,120]
[321459978,1712200313463,-500.0,0.00055616,120]
[321459979,1712200313473,-500.0,0.00055616,120]
[321459980,1712200313482,-1849.99,0.00055616,120]
[321459981,1712200313492,-1432.04,0.00055616,120]
[321459982,1712200313502,-500.0,0.00055616,120]
[321459983,1712200313511,-509.61,0.00055616,120]
[321459984,1712200313521,-500.0,0.00055616,120]
[321459985,1712200313530,-500.0,0.00055616,120]
[321459986,1712200313539,-1244.36,0.00055616,120]
[321459987,1712200313549,-954.07,0.00055616,120]
[321459988,1712200313558,-1303.95,0.00055616,120]
[321459989,1712200313568,-500.0,0.00055616,120]
[321459990,1712200313577,-500.0,0.00055616,120]
[321459991,1712200313587,-1278.23,0.00055616,120]
[321459992,1712200313598,-706.05,0.00055616,120]
[321459993,1712200313607,-500.0,0.00055616,120]
[321459994,1712200313617,-500.0,0.00055616,120]
[321459995,1712200313626,-888.96,0.00055616,120]
[321459996,1712200313634,-1327.35,0.00055616,120]
[321459997,1712200313644,-540.54,0.00055616,120]
[321459998,1712200313653,-575.65364256,0.00055616,120]
[321459999,1712200313662,-569.45410233,0.00055616,120]
[321460000,1712200313671,-500.0,0.00055616,120]
[321460001,1712200313680,-575.29,0.00055616,120]
[321460002,1712200313689,-1122.07,0.00055616,120]
[321460003,1712200313698,-500.0,0.00055616,120]
[321460004,1712200313706,-1000.0,0.00055616,30]
[321460005,1712200313716,-500.0,0.00055616,120]
[321460006,1712200313726,-1600.52,0.00055616,120]
[321460007,1712200313737,-500.0,0.00055616,120]
[321460008,1712200313746,-500.0,0.00055616,120]
[321460009,1712200313755,-500.0,0.00055616,120]
[321460010,1712200313764,-500.0,0.00055616,120]
[321460011,1712200313773,-500.0,0.00055616,120]
[321460012,1712200313782,-937.01,0.00055616,120]
[321460013,1712200313792,-835.22,0.00055616,120]
[321460014,1712200313801,-500.0,0.00055616,120]
[321460015,1712200313810,-500.0,0.00055616,120]
[321460016,1712200313820,-611.33,0.00055616,120]
[321460017,1712200313831,-500.0,0.00055616,120]
[321460018,1712200313840,-500.0,0.00055616,120]
[321460019,1712200313853,-500.0,0.00055616,120]
[321460020,1712200313865,-500.0,0.00055616,120]
[321460021,1712200313875,-632.85,0.00055616,120]
[321460022,1712200313884,-680.97,0.00055616,120]
[321460023,1712200313893,-500.0,0.00055616,120]
[321460024,1712200313902,-1123.71,0.00055616,120]
[321460025,1712200313911,-984.42,0.00055616,120]
[321460026,1712200313920,-500.0,0.00055616,120]
[321460027,1712200313929,-500.0,0.00055616,120]
[321460028,1712200313940,-500.0,0.00055616,120]
[321460029,1712200313949,-338.85949025,0.00055616,120]
[321460030,1712200313959,-500.0,0.00055616,120]
[321460031,1712200313968,-500.0,0.00055616,120]
[321460032,1712200313978,-1117.68,0.00055616,120]
[321460033,1712200313986,-1174.17,0.00055616,120]